[Event "FIDE WCCC Girls-12 2024"]
[Site "Montesilvano"]
[Date "2024.11.18"]
[Round "3.14"]
[White "Sunea, Sara Maria"]
[Black "Allahverdi, Zahra"]
[Result "0-1"]
[ECO "C45"]
[WhiteElo "1823"]
[BlackElo "1718"]
[PlyCount "100"]
[EventDate "2024.11.18"]
[EventType "swiss"]
[EventCountry "ITA"]
[TimeControl "5400+30"]

1. e4 {[%emt 0:00:05]} e5 {[%emt 0:00:08]} 2. Nf3 {[%emt 0:00:08]} Nc6 {[%emt 0:00:06]} 3. d4 {[%emt 0:00:05]} exd4 {[%emt 0:00:09]} 4. Nxd4 {[%emt 0:00:06]} Bc5 {[%emt 0:02:07]} 5. Nb3 {[%emt 0:00:06]} Bb6 {[%emt 0:00:25]} 6. Nc3 {[%emt 0:00:04]} Nf6 {[%emt 0:01:31]} 7. Qe2 {[%emt 0:00:48]} Qe7 {[%emt 0:07:55]} 8. Be3 {[%emt 0:15:54]} Bxe3 {[%emt 0:05:15]} 9. Qxe3 {[%emt 0:00:03]} d6 {[%emt 0:00:19]} 10. O-O-O {[%emt 0:04:08]} Be6 {[%emt 0:08:15]} 11. f3 {[%emt 0:02:40]} a6 {[%emt 0:07:33]} 12. g4 {[%emt 0:03:25]} h6 {[%emt 0:01:33]} 13. h4 {[%emt 0:10:24]} g6 {[%emt 0:06:31]} 14. Be2 {[%emt 0:02:31]} Nd7 {[%emt 0:06:02]} 15. f4 {[%emt 0:05:01]} Bxb3 {[%emt 0:03:46]} 16. axb3 {[%emt 0:00:21]} Nb6 {[%emt 0:00:18]} 17. Rh3 {[%emt 0:08:34]} O-O-O {[%emt 0:03:04]} 18. g5 {[%emt 0:13:35]} hxg5 {[%emt 0:01:44]} 19. hxg5 {[%emt 0:00:18]} Rxh3 {[%emt 0:01:00]} 20. Qxh3+ {[%emt 0:00:10]} Kb8 {[%emt 0:00:07]} 21. Bg4 {[%emt 0:02:50]} f6 {[%emt 0:04:26]} 22. gxf6 {[%emt 0:06:23]} Qxf6 {[%emt 0:00:10]} 23. Qe3 {[%emt 0:01:51]} Rf8 {[%emt 0:02:17]} 24. Ne2 {[%emt 0:02:03]} Re8 {[%emt 0:01:51]} 25. Qf3 {[%emt 0:01:18]} Rh8 {[%emt 0:02:19]} 26. Rh1 {[%emt 0:01:23]} Rf8 {[%emt 0:01:22]} 27. Qc3 {[%emt 0:01:44]} Ne5 {[%emt 0:18:38]} 28. Bh3 {[%emt 0:08:35]} Qh4 {[%emt 0:00:51]} 29. Qe1 {[%emt 0:06:17]} Rxf4 {[%emt 0:03:11]} 30. Nxf4 {[%emt 0:00:54]} Qxf4+ {[%emt 0:00:05]} 31. Kb1 {[%emt 0:00:44]} Nf3 {[%emt 0:01:09]} 32. Qe2 {[%emt 0:01:56]} Nd2+ {[%emt 0:02:16]} 33. Ka1 {[%emt 0:01:08]} Nxe4 {[%emt 0:01:36]} 34. Rf1 {[%emt 0:01:04]} Qe5 {[%emt 0:00:35]} 35. Re1 {[%emt 0:00:35]} Qa5+ {[%emt 0:00:20]} 36. Kb1 {[%emt 0:00:00]} Nd2+ {[%emt 0:00:16]} 37. Kc1 {[%emt 0:00:05]} Nf3 {[%emt 0:00:07]} 38. Qe8+ {[%emt 0:01:42]} Ka7 {[%emt 0:00:09]} 39. c3 {[%emt 0:00:26]} Qa1+ {[%emt 0:00:10]} 40. Kc2 {[%emt 0:00:02]} Nxe1+ {[%emt 0:10:54]} 41. Kd2 Qxb2+ {[%emt 0:00:00]} 42. Kxe1 {[%emt 0:00:26]} Qxc3+ {[%emt 0:00:00]} 43. Kf2 {[%emt 0:00:05]} Qxh3 {[%emt 0:00:00]} 44. Qxg6 {[%emt 0:00:01]} Qxb3 {[%emt 0:00:00]} 45. Qg7 {[%emt 0:00:11]} Qc2+ {[%emt 0:00:00]} 46. Ke1 {[%emt 0:00:11]} Qc5 {[%emt 0:00:00]} 47. Kd1 {[%emt 0:00:25]} a5 {[%emt 0:00:00]} 48. Qg3 {[%emt 0:00:27]} a4 {[%emt 0:00:00]} 49. Qf3 {[%emt 0:00:24]} a3 {[%emt 0:00:00]} 50. Qb3 {[%emt 0:00:04]} Qd5+ {[%emt 0:00:00]} 0-1

[Event "FIDE WCCC Girls-12 2024"]
[Site "Montesilvano"]
[Date "2024.11.18"]
[Round "3.15"]
[White "Tong Thai Hoang An"]
[Black "Smirnova, Viktoria A"]
[Result "1-0"]
[ECO "D45"]
[WhiteElo "1869"]
[BlackElo "1658"]
[PlyCount "81"]
[EventDate "2024.11.18"]
[EventType "swiss"]
[EventCountry "ITA"]
[TimeControl "5400+30"]

1. d4 {[%emt 0:00:04]} d5 {[%emt 0:00:06]} 2. c4 {[%emt 0:00:06]} c6 {[%emt 0:00:03]} 3. Nc3 {[%emt 0:00:15]} Nf6 {[%emt 0:00:09]} 4. e3 {[%emt 0:01:11]} e6 {[%emt 0:00:54]} 5. Nf3 {[%emt 0:01:12]} Nbd7 {[%emt 0:00:06]} 6. Qc2 {[%emt 0:00:36]} a6 {[%emt 0:03:22]} 7. b3 {[%emt 0:04:22]} Bb4 {[%emt 0:01:43]} 8. Bd2 {[%emt 0:04:35]} b6 {[%emt 0:02:28]} 9. Bd3 {[%emt 0:05:33]} Bb7 {[%emt 0:02:23]} 10. a3 {[%emt 0:05:55]} Bd6 {[%emt 0:01:19]} 11. e4 {[%emt 0:02:20]} e5 {[%emt 0:08:22]} 12. O-O {[%emt 0:04:27]} Qc7 {[%emt 0:01:51]} 13. Rae1 {[%emt 0:20:02]} O-O {[%emt 0:02:04]} 14. dxe5 {[%emt 0:06:53]} Nxe5 {[%emt 0:02:37]} 15. Nxe5 {[%emt 0:00:14]} Bxe5 {[%emt 0:00:38]} 16. f4 {[%emt 0:03:08]} Bd4+ {[%emt 0:03:41]} 17. Kh1 {[%emt 0:00:58]} Bxc3 {[%emt 0:01:06]} 18. Bxc3 {[%emt 0:02:24]} Nxe4 {[%emt 0:00:51]} 19. Bxe4 {[%emt 0:05:32]} dxe4 {[%emt 0:00:05]} 20. Rxe4 {[%emt 0:00:38]} c5 {[%emt 0:00:58]} 21. Re3 {[%emt 0:00:51]} Rad8 {[%emt 0:03:29]} 22. Rh3 {[%emt 0:12:32]} h6 {[%emt 0:04:19]} 23. Rg3 {[%emt 0:02:11]} f6 {[%emt 0:01:27]} 24. h3 {[%emt 0:03:57]} Kh8 {[%emt 0:04:55]} 25. Qf5 {[%emt 0:03:28]} Qd7 {[%emt 0:01:51]} 26. Qc2 {[%emt 0:01:38]} Rfe8 {[%emt 0:05:07]} 27. Qg6 {[%emt 0:01:54]} Be4 {[%emt 0:02:59]} 28. f5 {[%emt 0:00:48]} Rf8 {[%emt 0:01:55]} 29. Rf4 {[%emt 0:01:35]} Bc2 {[%emt 0:09:43]} 30. Rh4 {[%emt 0:00:48]} Kg8 {[%emt 0:05:24]} 31. Bxf6 {[%emt 0:02:50]} Rxf6 {[%emt 0:01:07]} 32. Qxf6 {[%emt 0:00:10]} Qc7 {[%emt 0:02:35]} 33. Rxg7+ {[%emt 0:00:47]} Qxg7 {[%emt 0:00:13]} 34. Qxd8+ {[%emt 0:01:08]} Kh7 {[%emt 0:00:28]} 35. f6 {[%emt 0:00:11]} Qf7 {[%emt 0:01:48]} 36. Qe7 {[%emt 0:00:46]} Kg8 {[%emt 0:00:44]} 37. Rxh6 {[%emt 0:00:32]} Qxe7 {[%emt 0:00:42]} 38. fxe7 {[%emt 0:00:09]} Kf7 {[%emt 0:00:07]} 39. Rxb6 {[%emt 0:00:23]} Kxe7 {[%emt 0:00:13]} 40. g4 {[%emt 0:00:21]} a5 {[%emt 0:01:59]} 41. a4 {[%emt 0:00:39]} 1-0

[Event "FIDE WCCC Girls-12 2024"]
[Site "Montesilvano"]
[Date "2024.11.18"]
[Round "3.16"]
[White "Sri Darshini T"]
[Black "Xue, Tianhao"]
[Result "0-1"]
[ECO "A21"]
[WhiteElo "1681"]
[BlackElo "1835"]
[PlyCount "152"]
[EventDate "2024.11.18"]
[EventType "swiss"]
[EventCountry "ITA"]
[TimeControl "5400+30"]

1. c4 {[%emt 0:00:03]} e5 {[%emt 0:00:12]} 2. Nc3 {[%emt 0:00:06]} Bb4 {[%emt 0:00:05]} 3. Qb3 {[%emt 0:00:08]} Nc6 {[%emt 0:00:16]} 4. e3 {[%emt 0:00:06]} Bxc3 {[%emt 0:00:53]} 5. Qxc3 {[%emt 0:01:12]} d6 {[%emt 0:00:20]} 6. Nf3 {[%emt 0:04:25]} Nf6 {[%emt 0:02:30]} 7. d3 {[%emt 0:01:39]} O-O {[%emt 0:00:45]} 8. Be2 {[%emt 0:11:32]} Re8 {[%emt 0:01:13]} 9. e4 {[%emt 0:01:34]} Bg4 {[%emt 0:02:35]} 10. Be3 {[%emt 0:01:38]} Nd7 {[%emt 0:01:31]} 11. b4 {[%emt 0:06:46]} Qc8 {[%emt 0:15:27]} 12. O-O {[%emt 0:03:56]} Nf8 {[%emt 0:01:45]} 13. b5 {[%emt 0:07:14]} Nd8 {[%emt 0:00:47]} 14. c5 {[%emt 0:02:44]} Bxf3 {[%emt 0:03:10]} 15. Bxf3 {[%emt 0:00:24]} dxc5 {[%emt 0:00:30]} 16. Qxc5 {[%emt 0:00:30]} c6 {[%emt 0:05:39]} 17. Rac1 {[%emt 0:07:35]} b6 {[%emt 0:01:24]} 18. Qc3 {[%emt 0:47:58]} c5 19. d4 {[%emt 0:00:00]} exd4 {[%emt 0:01:26]} 20. Bxd4 {[%emt 0:00:00]} Nde6 {[%emt 0:00:57]} 21. Be3 {[%emt 0:00:00]} Qc7 {[%emt 0:06:42]} 22. e5 {[%emt 0:00:00]} Rac8 {[%emt 0:02:55]} 23. Be4 {[%emt 0:00:00]} Red8 {[%emt 0:10:47]} 24. f4 {[%emt 0:00:00]} Qd7 {[%emt 0:05:32]} 25. Qc4 {[%emt 0:00:00]} Nd4 {[%emt 0:02:35]} 26. a4 {[%emt 0:00:00]} Qe6 {[%emt 0:04:06]} 27. Kh1 {[%emt 0:00:00]} Qxc4 {[%emt 0:02:05]} 28. Rxc4 {[%emt 0:00:00]} Nb3 {[%emt 0:01:08]} 29. Rc2 {[%emt 0:00:00]} Rc7 {[%emt 0:08:28]} 30. Rb1 {[%emt 0:00:00]} Na5 {[%emt 0:01:24]} 31. f5 {[%emt 0:00:00]} Rcd7 {[%emt 0:03:11]} 32. Rcc1 {[%emt 0:00:00]} Re8 {[%emt 0:01:09]} 33. Bxc5 {[%emt 0:02:23]} bxc5 {[%emt 0:01:04]} 34. Rxc5 {[%emt 0:00:17]} Rde7 {[%emt 0:01:10]} 35. b6 {[%emt 0:03:29]} axb6 {[%emt 0:00:17]} 36. Rd5 {[%emt 0:01:38]} Rxe5 {[%emt 0:00:21]} 37. Rxe5 {[%emt 0:00:04]} Rxe5 {[%emt 0:00:06]} 38. Bd3 {[%emt 0:00:10]} Rd5 {[%emt 0:00:29]} 39. Be2 {[%emt 0:00:42]} Rxf5 {[%emt 0:00:31]} 40. Rxb6 {[%emt 0:00:19]} Re5 {[%emt 0:00:13]} 41. Rb2 {[%emt 0:00:50]} Re4 {[%emt 0:00:45]} 42. Ra2 {[%emt 0:00:38]} Nb3 {[%emt 0:00:04]} 43. Bf1 {[%emt 0:00:33]} Na5 {[%emt 0:00:57]} 44. Kg1 {[%emt 0:00:18]} g6 {[%emt 0:00:08]} 45. Kf2 {[%emt 0:00:52]} Ne6 {[%emt 0:00:28]} 46. Bb5 {[%emt 0:00:28]} Rb4 {[%emt 0:01:05]} 47. Rd2 {[%emt 0:00:48]} Nd4 {[%emt 0:02:24]} 48. Bd7 {[%emt 0:00:44]} Nab3 {[%emt 0:00:44]} 49. Rb2 {[%emt 0:00:36]} Rb7 {[%emt 0:01:02]} 50. Bg4 {[%emt 0:00:39]} Ra7 {[%emt 0:01:21]} 51. Bd1 {[%emt 0:00:18]} Nc5 {[%emt 0:00:42]} 52. Ra2 {[%emt 0:00:19]} Nb5 {[%emt 0:01:47]} 53. Ra1 {[%emt 0:00:25]} Nc3 {[%emt 0:00:28]} 54. Bc2 {[%emt 0:00:20]} N3xa4 {[%emt 0:00:31]} 55. Bxa4 {[%emt 0:00:22]} Rxa4 {[%emt 0:00:07]} 56. Rd1 {[%emt 0:00:15]} Ne6 {[%emt 0:00:04]} 57. Rd2 {[%emt 0:00:30]} Kg7 {[%emt 0:00:03]} 58. Rb2 {[%emt 0:00:10]} h5 {[%emt 0:00:06]} 59. Rc2 {[%emt 0:00:18]} Nd4 {[%emt 0:00:07]} 60. Rb2 {[%emt 0:00:05]} Nf5 {[%emt 0:00:07]} 61. Re2 {[%emt 0:00:53]} Rf4+ {[%emt 0:00:20]} 62. Kg1 {[%emt 0:00:45]} Nh6 {[%emt 0:00:07]} 63. Ra2 {[%emt 0:00:19]} Rb4 {[%emt 0:00:18]} 64. g3 {[%emt 0:00:07]} h4 {[%emt 0:00:11]} 65. Kg2 {[%emt 0:00:08]} hxg3 {[%emt 0:00:06]} 66. Kxg3 {[%emt 0:00:09]} Nf5+ {[%emt 0:00:09]} 67. Kg2 {[%emt 0:00:14]} Kh6 {[%emt 0:00:07]} 68. Ra7 {[%emt 0:00:14]} Rb2+ {[%emt 0:00:08]} 69. Kh3 {[%emt 0:00:27]} f6 {[%emt 0:00:08]} 70. Ra8 {[%emt 0:00:16]} Kg5 {[%emt 0:00:07]} 71. Ra4 {[%emt 0:00:16]} Rb3+ {[%emt 0:00:12]} 72. Kg2 {[%emt 0:00:06]} Nh4+ {[%emt 0:00:06]} 73. Kf2 {[%emt 0:00:06]} f5 {[%emt 0:00:13]} 74. Rc4 {[%emt 0:00:13]} Rb2+ {[%emt 0:00:30]} 75. Kg3 {[%emt 0:00:34]} f4+ {[%emt 0:00:19]} 76. Kh3 {[%emt 0:00:15]} Rb3+ {[%emt 0:00:04]} 0-1

[Event "FIDE WCCC Girls-12 2024"]
[Site "Montesilvano"]
[Date "2024.11.18"]
[Round "3.17"]
[White "Muradova, Nebahat"]
[Black "Illes-Nagy, Nora"]
[Result "0-1"]
[ECO "D35"]
[WhiteElo "1626"]
[BlackElo "1803"]
[PlyCount "58"]
[EventDate "2024.11.18"]
[EventType "swiss"]
[EventCountry "ITA"]
[TimeControl "5400+30"]

1. d4 {[%emt 0:00:03]} d5 {[%emt 0:00:04]} 2. c4 {[%emt 0:00:07]} c6 {[%emt 0:00:05]} 3. Nf3 {[%emt 0:00:06]} Nf6 {[%emt 0:00:09]} 4. Nc3 {[%emt 0:00:05]} e6 {[%emt 0:00:07]} 5. cxd5 {[%emt 0:00:08]} exd5 {[%emt 0:00:14]} 6. Bg5 {[%emt 0:00:07]} h6 {[%emt 0:00:18]} 7. Bh4 {[%emt 0:00:05]} Bf5 {[%emt 0:00:11]} 8. e3 {[%emt 0:00:21]} Nbd7 {[%emt 0:00:21]} 9. Bd3 {[%emt 0:00:10]} Bxd3 {[%emt 0:00:09]} 10. Qxd3 {[%emt 0:00:14]} Be7 {[%emt 0:00:28]} 11. O-O {[%emt 0:00:27]} O-O {[%emt 0:00:14]} 12. a3 {[%emt 0:02:59]} a5 {[%emt 0:03:01]} 13. Rab1 {[%emt 0:01:19]} a4 {[%emt 0:05:28]} 14. Qc2 {[%emt 0:02:42]} b5 {[%emt 0:03:10]} 15. Bxf6 {[%emt 0:04:41]} Bxf6 {[%emt 0:03:35]} 16. Na2 {[%emt 0:03:52]} Rc8 {[%emt 0:03:45]} 17. Rbc1 {[%emt 0:04:57]} Nb6 {[%emt 0:13:38]} 18. Nb4 {[%emt 0:01:38]} Nc4 {[%emt 0:00:21]} 19. Nd2 {[%emt 0:02:18]} c5 {[%emt 0:16:44]} 20. dxc5 {[%emt 0:15:55]} Bxb2 {[%emt 0:05:42]} 21. Rcd1 {[%emt 0:00:25]} Bxa3 {[%emt 0:01:51]} 22. Na2 {[%emt 0:10:37]} Rxc5 {[%emt 0:06:19]} 23. Nxc4 {[%emt 0:00:34]} Rxc4 {[%emt 0:00:29]} 24. Qd3 {[%emt 0:00:26]} b4 {[%emt 0:01:59]} 25. Nc1 {[%emt 0:04:35]} Bxc1 {[%emt 0:05:38]} 26. Rxc1 {[%emt 0:01:02]} Qc7 {[%emt 0:00:27]} 27. Qd2 {[%emt 0:01:10]} Qc5 {[%emt 0:01:39]} 28. Rb1 {[%emt 0:02:07]} b3 {[%emt 0:00:45]} 29. Rfd1 {[%emt 0:00:37]} Rb8 {[%emt 0:01:20]} 0-1

[Event "FIDE WCCC Girls-12 2024"]
[Site "Montesilvano"]
[Date "2024.11.18"]
[Round "3.18"]
[White "Jordan, Christina"]
[Black "Bogomolnikova, Zlata"]
[Result "0-1"]
[ECO "B90"]
[WhiteElo "1803"]
[BlackElo "1628"]
[PlyCount "76"]
[EventDate "2024.11.18"]
[EventType "swiss"]
[EventCountry "ITA"]
[TimeControl "5400+30"]

1. e4 {[%emt 0:00:03]} c5 {[%emt 0:00:05]} 2. Nf3 {[%emt 0:00:06]} d6 {[%emt 0:00:08]} 3. d4 {[%emt 0:00:04]} cxd4 {[%emt 0:00:08]} 4. Nxd4 {[%emt 0:00:05]} Nf6 {[%emt 0:00:22]} 5. Nc3 {[%emt 0:00:05]} a6 {[%emt 0:00:08]} 6. Be3 {[%emt 0:00:07]} e5 {[%emt 0:00:08]} 7. Nb3 {[%emt 0:00:07]} Be6 {[%emt 0:00:08]} 8. f3 {[%emt 0:00:05]} Be7 {[%emt 0:00:10]} 9. Qd2 {[%emt 0:00:08]} Nbd7 {[%emt 0:06:51]} 10. g4 {[%emt 0:00:49]} b5 {[%emt 0:02:47]} 11. a3 {[%emt 0:02:01]} Nb6 {[%emt 0:02:39]} 12. Na5 {[%emt 0:06:30]} Rc8 {[%emt 0:08:00]} 13. O-O-O {[%emt 0:09:53]} Nc4 {[%emt 0:11:42]} 14. Bxc4 {[%emt 0:01:55]} Qxa5 {[%emt 0:01:54]} 15. Bxe6 {[%emt 0:01:45]} fxe6 {[%emt 0:00:15]} 16. Qf2 {[%emt 0:02:48]} Rxc3 {[%emt 0:05:05]} 17. bxc3 {[%emt 0:08:12]} Qxc3 {[%emt 0:02:19]} 18. Kb1 {[%emt 0:21:23]} Qxa3 {[%emt 0:03:50]} 19. Rd3 {[%emt 0:00:14]} Qb4+ {[%emt 0:02:19]} 20. Rb3 {[%emt 0:00:09]} Qc4 {[%emt 0:01:07]} 21. Kb2 {[%emt 0:11:02]} Qc6 {[%emt 0:03:04]} 22. Ra1 {[%emt 0:01:48]} d5 {[%emt 0:01:14]} 23. exd5 {[%emt 0:08:13]} exd5 {[%emt 0:01:11]} 24. Qd2 {[%emt 0:06:18]} d4 {[%emt 0:01:01]} 25. Bf2 {[%emt 0:00:15]} O-O {[%emt 0:01:35]} 26. Bg3 {[%emt 0:03:49]} Bd6 {[%emt 0:01:19]} 27. Qa5 {[%emt 0:01:53]} Rc8 {[%emt 0:00:26]} 28. Qd2 {[%emt 0:04:20]} Nd5 {[%emt 0:00:40]} 29. Bf2 {[%emt 0:02:44]} Nb4 {[%emt 0:00:48]} 30. Rc1 {[%emt 0:00:32]} Qc4 {[%emt 0:01:21]} 31. Be1 {[%emt 0:01:43]} a5 {[%emt 0:02:36]} 32. h3 {[%emt 0:04:36]} Be7 {[%emt 0:05:42]} 33. h4 {[%emt 0:00:44]} Na2 {[%emt 0:11:06]} 34. Ra1 {[%emt 0:02:21]} Bb4 {[%emt 0:01:02]} 35. Qf2 {[%emt 0:00:27]} Nc3 {[%emt 0:02:57]} 36. Rxb4 {[%emt 0:00:34]} Qxb4+ {[%emt 0:00:52]} 37. Kc1 {[%emt 0:00:07]} a4 {[%emt 0:00:31]} 38. Bxc3 {[%emt 0:00:51]} Qxc3 {[%emt 0:00:07]} 0-1

[Event "FIDE WCCC Girls-12 2024"]
[Site "Montesilvano"]
[Date "2024.11.18"]
[Round "3.19"]
[White "Jacome Revelo, Daniela Alexandra"]
[Black "Huang, Lucia"]
[Result "1-0"]
[ECO "C50"]
[WhiteElo "1764"]
[BlackElo "1621"]
[PlyCount "139"]
[EventDate "2024.11.18"]
[EventType "swiss"]
[EventCountry "ITA"]
[TimeControl "5400+30"]

1. e4 {[%emt 0:00:04]} e5 {[%emt 0:00:03]} 2. Nf3 {[%emt 0:00:13]} Nc6 {[%emt 0:00:04]} 3. Bc4 {[%emt 0:00:30]} Bc5 {[%emt 0:00:05]} 4. O-O {[%emt 0:02:18]} Nf6 {[%emt 0:00:16]} 5. d4 {[%emt 0:02:49]} Nxd4 {[%emt 0:09:28]} 6. Nxe5 {[%emt 0:00:38]} O-O {[%emt 0:00:13]} 7. Be3 {[%emt 0:03:44]} Ne6 {[%emt 0:18:24]} 8. Bxe6 {[%emt 0:00:24]} fxe6 {[%emt 0:02:13]} 9. Bxc5 {[%emt 0:00:14]} d6 {[%emt 0:00:18]} 10. Ba3 {[%emt 0:00:31]} Nxe4 {[%emt 0:01:08]} 11. Qd3 {[%emt 0:05:14]} Nf6 {[%emt 0:04:39]} 12. Nf3 {[%emt 0:02:41]} a5 {[%emt 0:06:09]} 13. Nc3 {[%emt 0:03:33]} b6 {[%emt 0:02:44]} 14. Rfe1 {[%emt 0:01:59]} Re8 {[%emt 0:04:38]} 15. Ne4 {[%emt 0:03:37]} Ba6 {[%emt 0:03:33]} 16. Nxf6+ {[%emt 0:01:51]} Qxf6 {[%emt 0:00:13]} 17. Qd4 {[%emt 0:06:25]} Qg6 {[%emt 0:02:21]} 18. Qe4 {[%emt 0:05:36]} Qf6 {[%emt 0:01:42]} 19. Nd4 {[%emt 0:05:52]} e5 {[%emt 0:04:55]} 20. Qd5+ {[%emt 0:01:12]} Kh8 {[%emt 0:00:19]} 21. Nb5 {[%emt 0:01:33]} Rac8 {[%emt 0:02:18]} 22. Qc6 {[%emt 0:01:16]} Re7 {[%emt 0:06:12]} 23. Re3 {[%emt 0:10:19]} Qf7 {[%emt 0:04:30]} 24. Nc3 {[%emt 0:12:20]} Qg6 {[%emt 0:04:39]} 25. Qe4 {[%emt 0:09:15]} Qe6 {[%emt 0:02:56]} 26. f4 {[%emt 0:01:25]} Rce8 {[%emt 0:03:41]} 27. Rae1 {[%emt 0:02:39]} Qd7 {[%emt 0:02:12]} 28. fxe5 {[%emt 0:02:53]} Rxe5 {[%emt 0:00:14]} 29. Qf4 {[%emt 0:00:42]} Rxe3 {[%emt 0:01:24]} 30. Rxe3 {[%emt 0:00:22]} b5 {[%emt 0:00:33]} 31. b4 {[%emt 0:02:07]} axb4 {[%emt 0:00:19]} 32. Bxb4 {[%emt 0:00:35]} c5 {[%emt 0:00:49]} 33. Qxd6 {[%emt 0:01:00]} Qf7 {[%emt 0:03:11]} 34. Bxc5 {[%emt 0:00:58]} Ra8 {[%emt 0:01:12]} 35. Rf3 {[%emt 0:00:58]} Qg8 {[%emt 0:01:20]} 36. Rf8 {[%emt 0:00:43]} Rxf8 {[%emt 0:00:06]} 37. Qxf8 {[%emt 0:00:06]} Qxf8 {[%emt 0:00:12]} 38. Bxf8 {[%emt 0:00:15]} Kg8 {[%emt 0:00:04]} 39. Bb4 {[%emt 0:00:29]} Kf7 {[%emt 0:00:11]} 40. Kf2 {[%emt 0:00:18]} Ke6 {[%emt 0:00:11]} 41. Ke3 {[%emt 0:00:15]} Ke5 {[%emt 0:00:19]} 42. Ne2 {[%emt 0:00:31]} Bb7 {[%emt 0:00:25]} 43. g4 {[%emt 0:00:42]} g6 {[%emt 0:00:34]} 44. Nd4 {[%emt 0:00:55]} Ba6 {[%emt 0:01:00]} 45. Nf3+ {[%emt 0:00:56]} Kd5 {[%emt 0:00:30]} 46. Ng5 {[%emt 0:00:41]} h6 {[%emt 0:00:54]} 47. Nf7 {[%emt 0:00:16]} h5 {[%emt 0:00:43]} 48. Nh8 {[%emt 0:00:33]} hxg4 {[%emt 0:00:13]} 49. Nxg6 {[%emt 0:00:08]} Kc4 {[%emt 0:00:55]} 50. c3 {[%emt 0:00:24]} Bc8 {[%emt 0:00:20]} 51. Kf4 {[%emt 0:00:18]} Kd5 {[%emt 0:00:46]} 52. Ne5 {[%emt 0:00:07]} Be6 {[%emt 0:00:29]} 53. Nxg4 {[%emt 0:00:35]} Kc6 {[%emt 0:00:16]} 54. h4 {[%emt 0:00:31]} Bxa2 {[%emt 0:00:20]} 55. h5 {[%emt 0:00:18]} Kd7 {[%emt 0:00:04]} 56. h6 {[%emt 0:00:28]} Bb1 {[%emt 0:00:20]} 57. Nf6+ {[%emt 0:00:22]} Kc6 {[%emt 0:00:18]} 58. Ne4 {[%emt 0:00:53]} Kd5 {[%emt 0:00:11]} 59. h7 {[%emt 0:00:24]} Bxe4 {[%emt 0:00:07]} 60. h8=Q {[%emt 0:00:09]} Bc2 {[%emt 0:12:07]} 61. Qd8+ {[%emt 0:00:19]} Kc4 {[%emt 0:00:00]} 62. Qd4+ {[%emt 0:00:28]} Kb3 {[%emt 0:00:00]} 63. Qd5+ {[%emt 0:00:23]} Kb2 {[%emt 0:00:00]} 64. Qxb5 {[%emt 0:00:15]} Kb3 {[%emt 0:00:00]} 65. Ba5+ {[%emt 0:00:12]} Ka3 {[%emt 0:00:00]} 66. Qb4+ {[%emt 0:00:11]} Ka2 {[%emt 0:00:00]} 67. Ke3 {[%emt 0:00:12]} Bb3 {[%emt 0:00:00]} 68. Kd2 {[%emt 0:00:18]} Bc2 {[%emt 0:00:00]} 69. Kxc2 {[%emt 0:00:10]} Ka1 {[%emt 0:00:00]} 70. Qb2# {[%emt 0:13:58]} 1-0

[Event "FIDE WCCC Girls-12 2024"]
[Site "Montesilvano"]
[Date "2024.11.18"]
[Round "3.20"]
[White "Aadya Ranganath"]
[Black "Ordonez Alarcon, Daniela"]
[Result "1-0"]
[ECO "C54"]
[WhiteElo "1753"]
[BlackElo "1606"]
[PlyCount "79"]
[EventDate "2024.11.18"]
[EventType "swiss"]
[EventCountry "ITA"]
[TimeControl "5400+30"]

1. e4 {[%emt 0:00:02]} e5 {[%emt 0:00:12]} 2. Nf3 {[%emt 0:00:05]} Nc6 {[%emt 0:00:11]} 3. Bc4 {[%emt 0:00:05]} Nf6 {[%emt 0:00:12]} 4. d3 {[%emt 0:00:56]} Bc5 {[%emt 0:00:07]} 5. c3 {[%emt 0:00:06]} d6 {[%emt 0:00:50]} 6. h3 {[%emt 0:00:27]} h6 {[%emt 0:16:07]} 7. O-O {[%emt 0:01:19]} Be6 {[%emt 0:05:03]} 8. Bb5 {[%emt 0:09:35]} a6 {[%emt 0:07:41]} 9. Bxc6+ {[%emt 0:03:24]} bxc6 {[%emt 0:00:11]} 10. d4 {[%emt 0:00:43]} exd4 {[%emt 0:01:39]} 11. cxd4 {[%emt 0:00:08]} Bb6 {[%emt 0:01:02]} 12. Qa4 {[%emt 0:01:10]} Bd7 {[%emt 0:08:51]} 13. e5 {[%emt 0:05:16]} Nd5 {[%emt 0:04:45]} 14. exd6 {[%emt 0:01:13]} cxd6 {[%emt 0:00:36]} 15. Re1+ {[%emt 0:00:22]} Ne7 {[%emt 0:00:20]} 16. Bf4 {[%emt 0:01:40]} Be6 {[%emt 0:06:02]} 17. Qa3 {[%emt 0:05:51]} Bc7 {[%emt 0:01:33]} 18. Nc3 {[%emt 0:03:12]} O-O {[%emt 0:03:49]} 19. Ne4 {[%emt 0:02:18]} Nc8 {[%emt 0:01:30]} 20. Rac1 {[%emt 0:04:31]} Bd5 {[%emt 0:00:45]} 21. Ned2 {[%emt 0:04:48]} Qf6 {[%emt 0:07:21]} 22. Bg3 {[%emt 0:01:46]} Nb6 {[%emt 0:03:41]} 23. Ne4 {[%emt 0:03:53]} Bxe4 {[%emt 0:00:32]} 24. Rxe4 {[%emt 0:00:06]} d5 {[%emt 0:03:13]} 25. Ree1 {[%emt 0:02:41]} Bxg3 {[%emt 0:00:25]} 26. fxg3 {[%emt 0:00:09]} Nc4 {[%emt 0:01:49]} 27. Qc3 {[%emt 0:00:38]} Rfc8 {[%emt 0:02:45]} 28. b3 {[%emt 0:03:56]} Nd6 {[%emt 0:00:08]} 29. Ne5 {[%emt 0:08:14]} Ne4 {[%emt 0:08:53]} 30. Qe3 {[%emt 0:01:30]} Ra7 {[%emt 0:00:57]} 31. Rf1 {[%emt 0:03:54]} Qd6 {[%emt 0:00:11]} 32. Qf4 {[%emt 0:02:00]} Qe6 {[%emt 0:02:03]} 33. Nxc6 {[%emt 0:02:31]} Rd7 {[%emt 0:07:12]} 34. Ne5 {[%emt 0:02:28]} Rxc1 {[%emt 0:00:23]} 35. Rxc1 {[%emt 0:00:05]} Rd6 {[%emt 0:00:45]} 36. Nxf7 {[%emt 0:01:27]} Rd7 {[%emt 0:01:56]} 37. Rc8+ {[%emt 0:00:57]} Kh7 {[%emt 0:01:09]} 38. Rh8+ {[%emt 0:00:11]} Kg6 {[%emt 0:00:06]} 39. Ne5+ {[%emt 0:00:05]} Kh5 {[%emt 0:01:10]} 40. Qh4# {[%emt 0:00:07]} 1-0

[Event "FIDE WCCC Girls-12 2024"]
[Site "Montesilvano"]
[Date "2024.11.18"]
[Round "3.21"]
[White "Sabou, Stefania Theodora"]
[Black "Busuioc, Amelie"]
[Result "1-0"]
[ECO "A36"]
[WhiteElo "1736"]
[BlackElo "1581"]
[PlyCount "49"]
[EventDate "2024.11.18"]
[EventType "swiss"]
[EventCountry "ITA"]
[TimeControl "5400+30"]

1. c4 {[%emt 0:00:05]} c5 {[%emt 0:00:02]} 2. Nc3 {[%emt 0:00:14]} Nc6 {[%emt 0:00:12]} 3. g3 {[%emt 0:00:17]} g6 {[%emt 0:00:12]} 4. Bg2 {[%emt 0:00:05]} Bg7 {[%emt 0:00:09]} 5. e4 {[%emt 0:00:07]} d6 {[%emt 0:00:09]} 6. Nge2 {[%emt 0:00:20]} Bd7 {[%emt 0:00:58]} 7. d3 {[%emt 0:00:37]} Qc8 {[%emt 0:00:21]} 8. Nf4 {[%emt 0:03:02]} e5 {[%emt 0:02:46]} 9. Nfd5 {[%emt 0:01:01]} Bh3 {[%emt 0:01:41]} 10. Bxh3 {[%emt 0:03:42]} Qxh3 {[%emt 0:01:12]} 11. Nc7+ {[%emt 1:26:30]} Kd8 {[%emt 0:02:26]} 12. Nxa8 {[%emt 0:00:00]} Nd4 {[%emt 0:02:31]} 13. Be3 {[%emt 0:00:00]} Qg2 {[%emt 0:00:46]} 14. Kd2 {[%emt 0:00:00]} Kc8 {[%emt 0:04:29]} 15. Bxd4 {[%emt 0:00:00]} exd4 {[%emt 0:00:42]} 16. Nd5 {[%emt 0:00:00]} Qxf2+ {[%emt 0:01:13]} 17. Qe2 {[%emt 0:00:00]} Bh6+ {[%emt 0:02:16]} 18. Kd1 {[%emt 0:00:00]} Qxe2+ {[%emt 0:01:03]} 19. Kxe2 {[%emt 0:00:00]} Be3 {[%emt 1:16:52]} 20. Nac7 {[%emt 0:00:00]} Nh6 {[%emt 0:00:00]} 21. Nxe3 {[%emt 0:00:00]} Kxc7 {[%emt 0:00:00]} 22. Nd5+ {[%emt 0:00:00]} Kb8 {[%emt 0:00:00]} 23. Nf6 {[%emt 0:00:00]} Ng8 {[%emt 0:00:00]} 24. Nxg8 {[%emt 0:00:00]} Rxg8 {[%emt 0:00:00]} 25. Rhf1 {[%emt 0:00:00]} 1-0